fUST/lending_fUST_20240902
["ID","MTS","AMOUNT","RATE_DAILY","PERIOD"]
[336912006,1725241541431,-207.943127,0.000246,2]
[336912007,1725241541462,-207.943127,0.000246,2]
[336912008,1725241541495,-300.0,0.00024646,2]
[336912009,1725241541526,-10701.9463041,0.00024647,3]
[336912010,1725241541559,-460.12026814,0.00024656,2]
[336912011,1725241541591,-325.98930763,0.00024657,11]
[336912012,1725241541617,-500.23028384,0.00024657,2]
[336912013,1725241541651,-503.9278936,0.00024657,2]
[336912014,1725241541678,-500.0,0.00024657,2]
[336912015,1725241541713,-500.0,0.00024657,2]
[336912016,1725241541742,-500.0,0.00024657,2]
[336912017,1725241541773,-500.0,0.00024657,2]
[336912018,1725241541801,-502.46531005,0.00024657,2]
[336912019,1725241541830,-500.0,0.00024657,2]
[336912020,1725241541858,-500.0,0.00024657,2]
[336912021,1725241541887,-500.0,0.00024657,2]
[336912022,1725241541915,-500.0,0.00024657,2]
[336912023,1725241541945,-500.0,0.00024657,2]
[336912024,1725241541974,-505.32394194,0.00024657,2]
[336912025,1725241542000,-500.0,0.00024657,2]
[336912026,1725241542029,-500.0,0.00024657,2]
[336912027,1725241542054,-500.0,0.00024657,2]
[336912028,1725241542080,-500.0,0.00024657,2]
[336912029,1725241542108,-500.0,0.00024657,2]
[336912030,1725241542135,-511.54176147,0.00024657,2]
[336912031,1725241542161,-500.0,0.00024657,2]
[336912032,1725241542189,-500.0,0.00024657,2]
[336912033,1725241542216,-504.06042606,0.00024657,2]
[336912034,1725241542243,-500.0,0.00024657,2]
[336912035,1725241542271,-504.80643826,0.00024657,2]
[336912036,1725241542299,-244.55842838,0.00024657,2]
[336912037,1725241542326,-500.0,0.00024657,2]
[336912038,1725241542351,-500.0,0.00024657,2]
[336912039,1725241542378,-500.0,0.00024657,2]
[336912040,1725241542402,-505.92632623,0.00024657,2]
[336912041,1725241542427,-502.52378395,0.00024657,2]
[336912042,1725241542457,-500.0,0.00024657,2]
[336912043,1725241542484,-502.71497184,0.00024657,2]
[336912044,1725241542511,-500.0,0.00024657,2]
[336912045,1725241542539,-635.5329067,0.00024657,2]
[336912046,1725241542566,-500.0,0.00024657,2]
[336912047,1725241542591,-500.0,0.00024657,2]
[336912048,1725241542617,-500.0,0.00024657,2]
[336912049,1725241542642,-500.0,0.00024657,2]
[336912050,1725241542668,-500.0,0.00024657,2]
[336912051,1725241542693,-501.05436662,0.00024657,2]
[336912052,1725241542719,-500.0,0.00024657,2]
[336912053,1725241542741,-500.0,0.00024657,2]
[336912054,1725241542763,-500.0,0.00024657,2]
[336912055,1725241542783,-500.0,0.00024657,2]
[336912056,1725241542804,-500.0,0.00024657,2]
[336912057,1725241542827,-620.88722085,0.00024657,2]
[336912058,1725241543112,-500.0,0.00024657,2]
[336912059,1725241543134,-500.0,0.00024657,2]
[336912060,1725241543155,-500.0,0.00024657,2]
[336912061,1725241543176,-502.90488527,0.00024657,2]
[336912062,1725241543197,-500.0,0.00024657,2]
[336912063,1725241543218,-500.0,0.00024657,2]
[336912064,1725241543239,-502.64491298,0.00024657,2]
[336912065,1725241543259,-500.0,0.00024657,2]
[336912066,1725241543280,-500.0,0.00024657,2]
[336912067,1725241543300,-501.20035828,0.00024657,2]
[336912068,1725241543321,-501.59859871,0.00024657,2]
[336912069,1725241543341,-500.0,0.00024657,2]
[336912070,1725241543363,-502.1144276,0.00024657,2]
[336912071,1725241543384,-500.0,0.00024657,2]
[336912072,1725241543404,-500.0,0.00024657,2]
[336912073,1725241543425,-502.9666215,0.00024657,2]
[336912074,1725241543445,-474.07846576,0.00024657,2]
[336912075,1725241543467,-500.0,0.00024657,2]
[336912076,1725241543487,-503.14594772,0.00024657,2]
[336912077,1725241543507,-500.0,0.00024657,2]
[336912078,1725241543528,-500.0,0.00024657,2]
[336912079,1725241543548,-500.0,0.00024657,2]
[336912080,1725241543569,-506.25108274,0.00024657,2]
[336912081,1725241543589,-500.0,0.00024657,2]
[336912082,1725241543610,-504.46916024,0.00024657,2]
[336912083,1725241543631,-500.0,0.00024657,2]
[336912084,1725241543655,-500.0,0.00024657,2]
[336912085,1725241543675,-460.93655901,0.00024657,2]
[336912086,1725241543697,-500.0,0.00024657,2]
[336912087,1725241543718,-500.0,0.00024657,2]
[336912088,1725241543742,-501.49893852,0.00024657,2]
[336912089,1725241543762,-500.0,0.00024657,2]
[336912090,1725241543783,-500.0,0.00024657,2]
[336912091,1725241543805,-500.0,0.00024657,2]
[336912092,1725241543825,-500.0,0.00024657,2]
[336912093,1725241543845,-501.07031529,0.00024657,2]
[336912094,1725241543865,-500.0,0.00024657,2]
[336912095,1725241543885,-152.6988414,0.00024657,2]
[336912096,1725241543906,-509.20041201,0.00024657,2]
[336912097,1725241543925,-500.0,0.00024657,2]
[336912098,1725241543945,-500.0,0.00024657,2]
[336912099,1725241543966,-508.9250888,0.00024657,2]
[336912100,1725241543987,-505.77120248,0.00024657,2]
[336912101,1725241544007,-570.85343434,0.00024657,2]
[336912102,1725241544029,-530.77,0.00024657,2]
[336912103,1725241544050,-500.0,0.00024657,2]
[336912104,1725241544071,-500.0,0.00024657,2]
[336912105,1725241544092,-500.0,0.00024657,2]
[336912106,1725241544112,-502.58894953,0.00024657,2]
[336912107,1725241544133,-500.0,0.00024657,2]
[336912108,1725241544153,-500.0,0.00024657,2]
[336912109,1725241544174,-806.73,0.00024657,2]
[336912110,1725241544195,-500.0,0.00024657,2]
[336912111,1725241544215,-772.81,0.00024657,2]
[336912112,1725241544236,-254.05366792,0.00024657,2]
[336912113,1725241544257,-504.49757383,0.00024657,2]
[336912114,1725241544277,-500.0,0.00024657,2]
[336912115,1725241544299,-500.0,0.00024657,2]
[336912116,1725241544320,-540.99797386,0.00024657,2]
[336912117,1725241544341,-500.0,0.00024657,2]
[336912118,1725241544361,-507.20957172,0.00024657,2]
[336912119,1725241544382,-407.29740563,0.00024657,2]
[336912120,1725241544402,-501.8585722,0.00024657,2]
[336912121,1725241544423,-500.0,0.00024657,2]
[336912122,1725241544444,-500.0,0.00024657,2]
[336912123,1725241544466,-280.33457776,0.00024657,2]
[336912124,1725241544488,-500.0,0.00024657,2]
[336912125,1725241544508,-596.31260913,0.00024657,2]
[336912126,1725241544529,-505.33070568,0.00024657,2]
[336912127,1725241544550,-815.72,0.00024657,2]
[336912128,1725241544570,-502.24133091,0.00024657,2]
[336912129,1725241544590,-500.0,0.00024657,2]
[336912130,1725241544611,-500.0,0.00024657,2]
[336912131,1725241544631,-823.35,0.00024657,2]
[336912132,1725241544655,-503.29639944,0.00024657,2]
[336912133,1725241544676,-500.87276422,0.00024657,2]
[336912134,1725241544696,-500.0,0.00024657,2]
[336912135,1725241544717,-503.45965728,0.00024657,2]
[336912136,1725241544739,-201.80121996,0.00024657,2]
[336912137,1725241544760,-500.0,0.00024657,2]
[336912138,1725241544781,-606.13798861,0.00024657,2]
[336912139,1725241544802,-503.96027489,0.00024657,2]
[336912140,1725241544822,-500.0,0.00024657,2]
[336912141,1725241544844,-501.45250274,0.00024657,2]
[336912142,1725241544866,-500.0,0.00024657,2]
[336912143,1725241544887,-500.0,0.00024657,2]
[336912144,1725241544908,-500.0,0.00024657,2]
[336912145,1725241544929,-500.0,0.00024657,2]
[336912146,1725241544951,-515.27692663,0.00024657,2]
[336912147,1725241544972,-500.0,0.00024657,2]
[336912148,1725241544994,-500.0,0.00024657,2]
[336912149,1725241545017,-500.0,0.00024657,2]
[336912150,1725241545039,-500.0,0.00024657,2]
[336912151,1725241545060,-589.49,0.00024657,2]
[336912152,1725241545081,-500.0,0.00024657,2]
[336912153,1725241545102,-500.0,0.00024657,2]
[336912154,1725241545123,-361.03957436,0.00024657,2]
[336912155,1725241545143,-500.0,0.00024657,2]
[336912156,1725241545163,-501.42282578,0.00024657,2]
[336912157,1725241545183,-500.72846944,0.00024657,2]
[336912158,1725241545204,-504.91231136,0.00024657,2]
[336912159,1725241545225,-500.0,0.00024657,2]
[336912160,1725241545245,-500.0,0.00024657,2]
[336912161,1725241545265,-500.0,0.00024657,2]
[336912162,1725241545287,-504.63124708,0.00024657,2]
[336912163,1725241545308,-500.0,0.00024657,2]
[336912164,1725241545328,-575.04015626,0.00024657,2]
[336912165,1725241545349,-500.95889531,0.00024657,2]
[336912166,1725241545371,-500.0,0.00024657,2]
[336912167,1725241545392,-500.0,0.00024657,2]
[336912168,1725241545412,-500.0,0.00024657,2]
[336912169,1725241545433,-500.0,0.00024657,2]
[336912170,1725241545455,-500.0,0.00024657,2]
[336912171,1725241545485,-500.0,0.00024657,2]
[336912172,1725241545506,-1395.67,0.00024657,2]
[336912173,1725241545526,-500.0,0.00024657,2]
[336912174,1725241545548,-500.0,0.00024657,2]
[336912175,1725241545570,-874.16,0.00024657,2]
[336912176,1725241545591,-500.0,0.00024657,2]
[336912177,1725241545612,-511.46334528,0.00024657,2]
[336912178,1725241545633,-500.0,0.00024657,2]
[336912179,1725241545654,-882.48,0.00024657,2]
[336912180,1725241545679,-500.0,0.00024657,2]
[336912181,1725241545699,-246.9832519,0.00024657,2]
[336912182,1725241545725,-500.0,0.00024657,2]
[336912183,1725241545748,-505.86819641,0.00024657,2]
[336912184,1725241545769,-500.0,0.00024657,2]
[336912185,1725241545789,-502.28783985,0.00024657,2]
[336912186,1725241545812,-209.1536399,0.00024657,2]
[336912187,1725241545835,-500.0,0.00024657,2]
[336912188,1725241545859,-500.0,0.00024657,2]
[336912189,1725241545882,-500.0,0.00024657,2]
[336912190,1725241545906,-500.0,0.00024657,2]
[336912191,1725241545929,-500.0,0.00024657,2]
[336912192,1725241545950,-643.28815099,0.00024657,2]
[336912193,1725241545972,-500.0,0.00024657,2]
[336912194,1725241545993,-500.0,0.00024657,2]
[336912195,1725241546015,-500.0,0.00024657,2]
[336912196,1725241546036,-530.59,0.00024657,2]
[336912197,1725241546056,-500.0,0.00024657,2]
[336912198,1725241546077,-500.0,0.00024657,2]
[336912199,1725241546244,-500.0,0.00024657,2]
[336912200,1725241546266,-500.0,0.00024657,2]
[336912201,1725241546288,-500.0,0.00024657,2]
[336912202,1725241546311,-1101.58,0.00024657,2]
[336912203,1725241546333,-500.0,0.00024657,2]
[336912204,1725241546358,-500.0,0.00024657,2]
[336912205,1725241546380,-500.0,0.00024657,2]
[336912206,1725241546402,-272.39795581,0.00024657,2]
[336912207,1725241546422,-733.14,0.00024657,2]
[336912208,1725241546443,-500.0,0.00024657,2]
[336912209,1725241546466,-500.0,0.00024657,2]
[336912210,1725241546486,-551.41521434,0.00024657,2]
[336912211,1725241546507,-500.0,0.00024657,2]
[336912212,1725241546528,-500.0,0.00024657,2]
[336912213,1725241546549,-1767.76,0.00024657,2]
[336912214,1725241546570,-501.29728799,0.00024657,2]
[336912215,1725241546591,-500.0,0.00024657,2]
[336912216,1725241546611,-501.6902621,0.00024657,2]
[336912217,1725241546632,-500.0,0.00024657,2]
[336912218,1725241546653,-858.09,0.00024657,2]
[336912219,1725241546678,-503.13277125,0.00024657,2]
[336912220,1725241546702,-500.0,0.00024657,2]
[336912221,1725241546725,-1349.41,0.00024657,2]
[336912222,1725241546748,-692.14,0.00024657,2]
[336912223,1725241546771,-500.0,0.00024657,2]
[336912224,1725241546791,-500.0,0.00024657,2]
[336912225,1725241546814,-500.0,0.00024657,2]
[336912226,1725241546837,-541.11,0.00024657,2]
[336912227,1725241546860,-500.0,0.00024657,2]
[336912228,1725241546882,-500.0,0.00024657,2]
[336912229,1725241546904,-500.0,0.00024657,2]
[336912230,1725241546925,-1057.06,0.00024657,2]
[336912231,1725241546947,-1055.41,0.00024657,2]
[336912232,1725241546974,-500.0,0.00024657,2]
[336912233,1725241546997,-500.0,0.00024657,2]
[336912234,1725241547020,-500.0,0.00024657,2]
[336912235,1725241547043,-503.8653371,0.00024657,2]
[336912236,1725241547066,-500.0,0.00024657,2]
[336912237,1725241547088,-969.24,0.00024657,2]
[336912238,1725241547109,-500.0,0.00024657,2]
[336912239,1725241547131,-500.0,0.00024657,2]
[336912240,1725241547152,-500.0,0.00024657,2]
[336912241,1725241547172,-500.0,0.00024657,2]
[336912242,1725241547193,-503.21802048,0.00024657,2]
[336912243,1725241547216,-501.5864036,0.00024657,2]
[336912244,1725241547237,-502.58612427,0.00024657,2]
[336912245,1725241547259,-502.40099403,0.00024657,2]
[336912246,1725241547280,-500.0,0.00024657,2]
[336912247,1725241547301,-500.0,0.00024657,2]
[336912248,1725241547322,-500.0,0.00024657,2]
[336912249,1725241547343,-500.0,0.00024657,2]
[336912250,1725241547364,-1353.53,0.00024657,2]
[336912251,1725241547384,-506.35823838,0.00024657,2]
[336912252,1725241547405,-1604.29,0.00024657,2]
[336912253,1725241547426,-500.0,0.00024657,2]
[336912254,1725241547447,-502.12317671,0.00024657,2]
[336912255,1725241547470,-500.0,0.00024657,2]
[336912256,1725241547490,-352.90321033,0.00024657,2]
[336912257,1725241547513,-500.0,0.00024657,2]
[336912258,1725241547535,-690.61,0.00024657,2]
[336912259,1725241547558,-500.0,0.00024657,2]
[336912260,1725241547579,-503.40672282,0.00024657,2]
[336912261,1725241547601,-534.54360637,0.00024657,2]
[336912262,1725241547621,-500.0,0.00024657,2]
[336912263,1725241547643,-500.0,0.00024657,2]
[336912264,1725241547669,-695.97,0.00024657,2]
[336912265,1725241547691,-500.0,0.00024657,2]
[336912266,1725241547716,-500.0,0.00024657,2]
[336912267,1725241547739,-500.0,0.00024657,2]
[336912268,1725241547760,-500.0,0.00024657,2]
[336912269,1725241547781,-500.0,0.00024657,2]
[336912270,1725241547803,-551.66995503,0.00024657,2]
[336912271,1725241547824,-500.0,0.00024657,2]
[336912272,1725241547846,-500.0,0.00024657,2]
[336912273,1725241547867,-500.0,0.00024657,2]
[336912274,1725241547888,-502.89874327,0.00024657,2]
[336912275,1725241547909,-500.0,0.00024657,2]
[336912276,1725241547932,-501.65447602,0.00024657,2]
[336912277,1725241547956,-500.0,0.00024657,2]
[336912278,1725241547979,-500.0,0.00024657,2]
[336912279,1725241548000,-500.0,0.00024657,2]
[336912280,1725241548022,-208.2996,0.00024657,2]
[336912281,1725241548043,-500.0,0.00024657,2]
[336912282,1725241548065,-500.0,0.00024657,2]
[336912283,1725241548087,-500.0,0.00024657,2]
[336912284,1725241548110,-500.0,0.00024657,2]
[336912285,1725241548130,-500.0,0.00024657,2]
[336912286,1725241548151,-500.0,0.00024657,2]
[336912287,1725241548172,-2537.34,0.00024657,2]
[336912288,1725241548192,-500.0,0.00024657,2]
[336912289,1725241548214,-1542.69,0.00024657,2]
[336912290,1725241548235,-591.29,0.00024657,2]
[336912291,1725241548256,-519.39,0.00024657,2]
[336912292,1725241548277,-500.0,0.00024657,2]
[336912293,1725241548298,-500.0,0.00024657,2]
[336912294,1725241548320,-500.0,0.00024657,2]
[336912295,1725241548341,-500.0,0.00024657,2]
[336912296,1725241548362,-500.0,0.00024657,2]
[336912297,1725241548383,-638.71,0.00024657,2]
[336912298,1725241548405,-500.0,0.00024657,2]
[336912299,1725241548426,-500.0,0.00024657,2]
[336912300,1725241548448,-550.16,0.00024657,2]
[336912301,1725241548476,-557.59,0.00024657,2]
[336912302,1725241548497,-385.85203138,0.00024657,2]
[336912303,1725241548518,-500.0,0.00024657,2]
[336912304,1725241548539,-500.0,0.00024657,2]
[336912305,1725241548561,-1267.49,0.00024657,2]
[336912306,1725241548583,-500.0,0.00024657,2]
[336912307,1725241548604,-469.76081487,0.00024657,2]
[336912308,1725241548625,-504.02867805,0.00024657,2]
[336912309,1725241548648,-500.0,0.00024657,2]
[336912310,1725241548673,-500.0,0.00024657,2]
[336912311,1725241548695,-500.0,0.00024657,4]
[336912312,1725241548719,-500.0,0.00024657,2]
[336912313,1725241548741,-500.0,0.00024657,2]
[336912314,1725241548765,-509.84230007,0.00024657,2]
[336912315,1725241548786,-546.00473216,0.00024657,2]
[336912316,1725241548808,-500.0,0.00024657,2]
[336912317,1725241548831,-500.0,0.00024657,2]
[336912318,1725241548852,-500.0,0.00024657,2]
[336912319,1725241548874,-500.0,0.00024657,2]
[336912320,1725241548895,-500.0,0.00024657,2]
[336912321,1725241548917,-500.0,0.00024657,2]
[336912322,1725241548938,-500.74829199,0.00024657,2]
[336912323,1725241548960,-2480.27,0.00024657,2]
[336912324,1725241548983,-500.0,0.00024657,2]
[336912325,1725241549004,-419.70650724,0.00024657,2]
[336912326,1725241549025,-500.0,0.00024657,2]
[336912327,1725241549048,-500.0,0.00024657,2]
[336912328,1725241549069,-500.0,0.00024657,2]
[336912329,1725241549090,-737.35,0.00024657,2]
[336912330,1725241549111,-503.27311565,0.00024657,2]
[336912331,1725241549132,-538.45793782,0.00024657,2]
[336912332,1725241549153,-500.0,0.00024657,2]
[336912333,1725241549175,-572.78602404,0.00024657,2]
[336912334,1725241549196,-500.0,0.00024657,2]
[336912335,1725241549220,-504.46068466,0.00024657,2]
[336912336,1725241549242,-500.0,0.00024657,2]
[336912337,1725241549263,-500.0,0.00024657,2]
[336912338,1725241549284,-1679.13,0.00024657,2]
[336912339,1725241549306,-500.0,0.00024657,2]
[336912340,1725241549328,-500.0,0.00024657,2]
[336912341,1725241549349,-1128.40193435,0.00024657,2]
[336912345,1725241635122,-1366.8119094,0.00024557,2]
[336912346,1725241635147,-300.0,0.00024656,2]
[336912347,1725241635168,-503.4478998,0.00024657,2]
[336912348,1725241635189,-1026.49,0.00024657,2]
[336912349,1725241635210,-509.31270051,0.00024657,2]
[336912350,1725241635231,-500.0,0.00024657,2]
[336912351,1725241635252,-500.0,0.00024657,2]
[336912352,1725241635275,-500.0,0.00024657,2]
[336912353,1725241635484,-500.0,0.00024657,2]
[336912354,1725241635505,-500.0,0.00024657,2]
[336912355,1725241635528,-500.0,0.00024657,2]
[336912356,1725241635549,-500.0,0.00024657,2]
[336912357,1725241635570,-500.0,0.00024657,2]
[336912358,1725241635591,-500.0,0.00024657,2]
[336912359,1725241635613,-500.0,0.00024657,2]
[336912360,1725241635633,-1056.18,0.00024657,2]
[336912361,1725241635653,-506.24710016,0.00024657,2]
[336912362,1725241635674,-99.52722013,0.00024657,2]
[336912363,1725241637112,-400.92077391,0.00024657,2]
[336912364,1725241637134,-503.79677752,0.00024657,2]
[336912365,1725241637155,-504.23667729,0.00024657,2]
[336912366,1725241637176,-588.42,0.00024657,2]
[336912367,1725241637196,-500.0,0.00024657,2]
[336912368,1725241637217,-500.0,0.00024657,2]
[336912369,1725241637239,-308.08232667,0.00024657,2]
[336912370,1725241637261,-1495.45,0.00024657,2]
[336912371,1725241637285,-500.0,0.00024657,2]
[336912372,1725241637305,-500.0,0.00024657,2]
[336912373,1725241637325,-1096.0,0.00024657,2]
[336912374,1725241637344,-500.0,0.00024657,2]
[336912375,1725241637365,-500.0,0.00024657,2]
[336912376,1725241637385,-500.0,0.00024657,2]
[336912377,1725241637405,-500.0,0.00024657,2]
[336912378,1725241637425,-503.0016366,0.00024657,2]
[336912379,1725241637444,-500.0,0.00024657,2]
[336912380,1725241637465,-500.0,0.00024657,2]
[336912381,1725241637484,-500.0,0.00024657,2]
[336912382,1725241637505,-500.0,0.00024657,2]
[336912383,1725241637526,-500.0,0.00024657,2]
[336912384,1725241637546,-500.0,0.00024657,2]
[336912385,1725241637567,-500.0,0.00024657,2]
[336912386,1725241637586,-500.0,0.00024657,2]
[336912387,1725241637607,-500.0,0.00024657,2]
[336912388,1725241637627,-500.0,0.00024657,2]
[336912389,1725241637649,-500.0,0.00024657,2]
[336912390,1725241637671,-814.05,0.00024657,2]
[336912391,1725241637696,-507.86961144,0.00024657,2]
[336912392,1725241637717,-500.0,0.00024657,2]
[336912393,1725241637742,-500.0,0.00024657,2]
[336912394,1725241637766,-500.0,0.00024657,2]
[336912395,1725241637788,-853.48,0.00024657,2]
[336912396,1725241637808,-1261.97,0.00024657,2]
[336912397,1725241637828,-504.73335956,0.00024657,2]
[336912398,1725241637848,-500.0,0.00024657,2]
[336912399,1725241637869,-500.0,0.00024657,2]
[336912400,1725241637889,-500.0,0.00024657,2]
[336912401,1725241637909,-501.30997439,0.00024657,2]
[336912402,1725241637932,-158.186282,0.00024657,2]
[336912403,1725241637957,-500.0,0.00024657,2]
[336912404,1725241637980,-1312.91,0.00024657,2]
[336912405,1725241638003,-500.0,0.00024657,2]
[336912406,1725241638024,-1049.4,0.00024657,2]
[336912407,1725241638048,-751.59,0.00024657,2]
[336912408,1725241638068,-500.0,0.00024657,2]
[336912409,1725241638089,-500.0,0.00024657,2]
[336912410,1725241638114,-888.46,0.00024657,2]
[336912411,1725241638135,-500.0,0.00024657,2]
[336912412,1725241638157,-956.79,0.00024657,2]
[336912413,1725241638179,-508.47736535,0.00024657,2]
[336912414,1725241638199,-425.86110926,0.00024657,2]
[336912415,1725241638224,-500.0,0.00024657,2]
[336912416,1725241638246,-502.16410772,0.00024657,2]
[336912417,1725241638267,-500.0,0.00024657,2]
[336912418,1725241638288,-567.63,0.00024657,2]
[336912419,1725241638310,-500.0,0.00024657,2]
[336912420,1725241638331,-500.0,0.00024657,2]
[336912421,1725241638352,-500.0,0.00024657,2]
[336912422,1725241638372,-500.0,0.00024657,2]
[336912423,1725241638393,-500.0,0.00024657,2]
[336912424,1725241638414,-500.0,0.00024657,2]
[336912425,1725241638436,-2647.14,0.00024657,2]
[336912426,1725241638456,-500.0,0.00024657,2]
[336912427,1725241638477,-500.0,0.00024657,2]
[336912428,1725241638498,-1788.7,0.00024657,2]
[336912429,1725241638520,-500.0,0.00024657,2]
[336912430,1725241638544,-500.0,0.00024657,2]
[336912431,1725241638565,-500.0,0.00024657,2]
[336912432,1725241638587,-522.57,0.00024657,2]
[336912433,1725241638608,-2394.69,0.00024657,2]
[336912434,1725241638630,-506.35198726,0.00024657,2]
[336912435,1725241638652,-504.79800458,0.00024657,2]
[336912436,1725241638674,-500.0,0.00024657,2]
[336912437,1725241638698,-500.0,0.00024657,2]
[336912438,1725241638720,-500.0,0.00024657,2]
[336912439,1725241638742,-500.0,0.00024657,2]
[336912440,1725241638763,-500.0,0.00024657,2]
[336912441,1725241638784,-2902.22,0.00024657,2]
[336912442,1725241638805,-500.0,0.00024657,2]
[336912443,1725241638827,-500.0,0.00024657,2]
[336912444,1725241638850,-500.0,0.00024657,2]
[336912445,1725241638872,-521.02418594,0.00024657,2]
[336912446,1725241638894,-2460.78,0.00024657,2]
[336912447,1725241638914,-612.1,0.00024657,2]
[336912448,1725241638936,-513.66884988,0.00024657,2]
[336912449,1725241638958,-500.0,0.00024657,2]
[336912450,1725241638979,-4058.39,0.00024657,2]
[336912451,1725241639001,-500.0,0.00024657,2]
[336912452,1725241639023,-801.05,0.00024657,2]
[336912453,1725241639044,-500.0,0.00024657,2]
[336912454,1725241639066,-722.61,0.00024657,2]
[336912455,1725241639087,-1346.27,0.00024657,2]
[336912456,1725241639107,-500.0,0.00024657,2]
[336912457,1725241639129,-501.16671629,0.00024657,2]
[336912458,1725241639150,-500.0,0.00024657,2]
[336912459,1725241639172,-734.36,0.00024657,2]
[336912460,1725241639193,-500.0,0.00024657,2]
[336912461,1725241639215,-500.0,0.00024657,2]
[336912462,1725241639237,-500.0,0.00024657,2]
[336912463,1725241639258,-500.0,0.00024657,2]
[336912464,1725241639281,-1566.24,0.00024657,2]
[336912465,1725241639302,-500.0,0.00024657,2]
[336912466,1725241639325,-1661.52,0.00024657,2]
[336912467,1725241639482,-500.0,0.00024657,2]
[336912468,1725241639503,-500.0,0.00024657,2]
[336912469,1725241639524,-500.0,0.00024657,2]
[336912470,1725241639545,-500.0,0.00024657,2]
[336912471,1725241639566,-500.0,0.00024657,2]
[336912472,1725241639588,-502.53327731,0.00024657,2]
[336912473,1725241639609,-500.0,0.00024657,2]
[336912474,1725241639631,-500.0,0.00024657,2]
[336912475,1725241639652,-1803.31,0.00024657,2]
[336912476,1725241639675,-463.55958975,0.00024657,2]
[336912477,1725241639701,-1052.06,0.00024657,2]
[336912478,1725241639726,-500.0,0.00024657,2]
[336912479,1725241639752,-1192.31,0.00024657,2]
[336912480,1725241639778,-1687.77,0.00024657,2]
[336912481,1725241639798,-500.0,0.00024657,2]
[336912482,1725241639820,-500.0,0.00024657,2]
[336912483,1725241639842,-500.0,0.00024657,2]
[336912484,1725241639863,-500.0,0.00024657,2]
[336912485,1725241639884,-502.39325452,0.00024657,2]
[336912486,1725241639905,-500.0,0.00024657,2]
[336912487,1725241639927,-1316.0,0.00024657,2]
[336912488,1725241639950,-500.0,0.00024657,2]
[336912489,1725241639971,-500.0,0.00024657,2]
[336912490,1725241639993,-500.0,0.00024657,2]
[336912491,1725241640015,-1897.0,0.00024657,2]
[336912492,1725241640039,-856.42,0.00024657,2]
[336912493,1725241640060,-1190.97,0.00024657,2]
[336912494,1725241640081,-500.0,0.00024657,2]
[336912495,1725241640102,-500.0,0.00024657,2]
[336912496,1725241640123,-257.41255442,0.00024657,2]
[336912497,1725241640145,-2693.66,0.00024657,2]
[336912498,1725241640167,-663.31,0.00024657,2]
[336912499,1725241640188,-688.93,0.00024657,2]
[336912500,1725241640208,-666.35,0.00024657,2]
[336912501,1725241640228,-501.82625989,0.00024657,2]
[336912502,1725241640249,-500.0,0.00024657,2]
[336912503,1725241640270,-873.75,0.00024657,2]
[336912504,1725241640294,-500.0,0.00024657,2]
[336912505,1725241640314,-693.58,0.00024657,2]
[336912506,1725241640336,-500.0,0.00024657,2]
[336912507,1725241640358,-500.0,0.00024657,2]
[336912508,1725241640380,-5488.79,0.00024657,2]